bitfinex-derivatives/quotes_BTCF0:USTF0_20250324
["timestamp","ask_amount","ask_price","bid_price","bid_amount"]
[1742782483609,0.1821721,85749.0,85748.0,0.09002166]
[1742782484120,0.1821721,85749.0,85748.0,0.08984351]
[1742782484515,0.1821721,85749.0,85748.0,0.0898442]
[1742782484720,0.1821721,85749.0,85748.0,0.07795595]
[1742782485518,0.1821721,85749.0,85748.0,0.08969266]
[1742782487825,0.1821721,85749.0,85748.0,0.07795595]
[1742782489426,0.1821721,85749.0,85748.0,0.08960813]
[1742782490315,0.1821721,85749.0,85748.0,0.08957257]
[1742782492126,0.1492721,85749.0,85748.0,0.08957257]
[1742782492527,0.1492721,85749.0,85748.0,0.20619097]
[1742782492726,0.1492721,85749.0,85748.0,0.08957257]
[1742782494534,0.1492721,85749.0,85748.0,0.08957625]
[1742782494721,0.1808721,85749.0,85748.0,0.08957625]
[1742782496436,0.1492721,85749.0,85748.0,0.08957625]
[1742782498738,0.1492721,85749.0,85748.0,0.08957404]
[1742782498939,0.1806721,85749.0,85748.0,0.08957404]
[1742782499328,0.1806721,85749.0,85748.0,0.08957117]
[1742782500735,0.1492721,85749.0,85748.0,0.08957261]
[1742782501743,0.1492721,85749.0,85748.0,0.17957261]
[1742782502335,0.1492721,85749.0,85748.0,0.17950097]
[1742782505440,0.1492721,85749.0,85748.0,0.08950097]
[1742782505638,0.1794721,85749.0,85748.0,0.07784879]
[1742782505840,0.2097721,85749.0,85748.0,0.07488117]
[1742782506739,0.2097721,85749.0,85748.0,0.06294]
[1742782507733,0.1794721,85749.0,85748.0,0.06294]
[1742782508845,0.1794721,85749.0,85748.0,0.07443947]
[1742782511845,0.1794721,85749.0,85748.0,0.19103947]
[1742782518451,0.1794721,85749.0,85748.0,0.29103947]
[1742782520351,0.000855,85749.0,85748.0,0.29103947]
[1742782520541,0.17532913,85752.0,85751.0,0.1166143]
[1742782520741,0.17600913,85752.0,85751.0,0.4772143]
[1742782520947,0.17532913,85752.0,85751.0,0.4772143]
[1742782521144,0.00112,85752.0,85751.0,0.4772143]
[1742782521447,0.0004,85752.0,85751.0,0.5099143]
[1742782522748,0.24383565,85764.0,85763.0,0.116598]
[1742782522943,0.24451565,85764.0,85763.0,1.485358]
[1742782523643,0.24451565,85764.0,85763.0,1.547858]
[1742782525040,0.00068,85764.0,85763.0,1.547858]
[1742782525241,0.0004,85768.0,85767.0,0.1165926]
[1742782525448,0.0004,85768.0,85767.0,0.5371926]
[1742782526145,0.0004,85768.0,85767.0,0.5984926]
[1742782531747,0.0004,85768.0,85767.0,0.4184926]
[1742782532046,0.0004,85768.0,85767.0,0.5350126]
[1742782532247,0.0004,85768.0,85767.0,0.6350126]
[1742782536051,8e-05,85771.0,85770.0,0.1165885]
[1742782536350,8e-05,85771.0,85770.0,0.9979885]
[1742782536555,0.00011666,85772.0,85771.0,0.1165871]
[1742782536756,0.00019666,85772.0,85771.0,0.6172271]
[1742782536956,0.00019666,85772.0,85771.0,0.7106271]
[1742782537253,0.00019666,85772.0,85771.0,0.56144]
[1742782537453,0.11678246,85772.0,85771.0,0.68935983]
[1742782537957,0.17818246,85772.0,85771.0,0.80594693]
[1742782538152,0.06159666,85772.0,85771.0,0.80594693]
[1742782538653,0.17818246,85772.0,85771.0,0.80594693]
[1742782538855,0.17818246,85772.0,85771.0,0.68935983]
[1742782539048,0.17818246,85772.0,85771.0,0.61712]
[1742782539258,0.17818246,85772.0,85771.0,0.23064]
[1742782539556,0.17886246,85772.0,85771.0,0.23064]
[1742782539754,0.17818246,85772.0,85771.0,0.23064]
[1742782540155,0.17818246,85772.0,85771.0,0.00064]
[1742782540350,0.17894246,85772.0,85771.0,0.00064]
[1742782541757,0.1165899,85769.0,85768.0,0.0329]
[1742782541946,0.1173099,85769.0,85768.0,0.00064]
[1742782542259,0.1166021,85760.0,85755.0,0.20868279]
[1742782542457,0.1166075,85756.0,85755.0,0.20868279]
[1742782542652,0.1175275,85756.0,85755.0,0.05966279]
[1742782542850,0.1175275,85756.0,85755.0,0.00068]
[1742782543050,0.1166184,85748.0,85747.0,0.11648]
[1742782543256,0.11765841,85748.0,85747.0,0.11708]
[1742782543657,0.11765841,85748.0,85747.0,0.14728]
[1742782543957,0.11765841,85748.0,85747.0,0.0623]
[1742782546462,0.16785841,85748.0,85747.0,0.0623]
[1742782561774,0.14975841,85748.0,85747.0,0.0623]
[1742782568381,0.11765841,85748.0,85747.0,0.0623]
[1742782570088,0.11765841,85748.0,85747.0,0.0617]
[1742782570285,0.11765841,85748.0,85747.0,0.06234]
[1742782570588,0.11765841,85748.0,85747.0,0.0617]
[1742782571089,0.16705841,85748.0,85747.0,0.0617]
[1742782571385,0.1166225,85745.0,85744.0,0.0321]
[1742782571579,0.11766251,85745.0,85744.0,0.0321]
[1742782571983,0.0583129,85743.0,85739.0,0.0001749]
[1742782572188,0.1166293,85740.0,85739.0,0.0007749]
[1742782572483,0.11766931,85740.0,85739.0,0.0007749]
[1742782573692,0.11766931,85740.0,85739.0,0.0017749]
[1742782574190,0.11766931,85740.0,85739.0,0.0027749]
[1742782574987,0.11766931,85740.0,85739.0,0.0670749]
[1742782575990,0.29179785,85740.0,85739.0,0.0670749]
[1742782576293,0.29179785,85740.0,85739.0,0.0664749]
[1742782579499,0.29179785,85740.0,85739.0,0.4272749]
[1742782579500,0.11766931,85740.0,85739.0,0.4272749]
[1742782579686,0.11766931,85740.0,85739.0,0.4279149]
[1742782579881,0.11766931,85740.0,85739.0,0.5445456]
[1742782580085,0.17412854,85741.0,85740.0,0.1166293]
[1742782580285,0.29151644,85741.0,85740.0,0.2799293]
[1742782581392,0.29151644,85741.0,85740.0,0.2809293]
[1742782581779,0.29151644,85741.0,85740.0,0.3983293]
[1742782581995,0.29151644,85741.0,85740.0,0.2819293]
[1742782582194,0.29151644,85741.0,85740.0,0.3983293]
[1742782582384,0.1173879,85741.0,85740.0,0.3983293]
[1742782582695,0.1173879,85741.0,85740.0,0.2817]
[1742782583190,0.1173879,85741.0,85740.0,0.1653]
[1742782583390,0.1477879,85741.0,85740.0,0.0653]
[1742782583598,0.29731889,85741.0,85740.0,0.0647]
[1742782583895,0.29731889,85741.0,85740.0,0.03406]
[1742782584090,0.29731889,85741.0,85740.0,0.0333]
[1742782585992,0.29731889,85741.0,85740.0,0.002]
[1742782586298,0.1166361,85735.0,85734.0,0.0643]
[1742782586595,0.4782361,85735.0,85734.0,0.0643]
[1742782587095,0.59486709,85735.0,85734.0,0.0643]
[1742782587295,0.65936709,85735.0,85734.0,0.0643]
[1742782587595,0.65936709,85735.0,85734.0,0.0663]
[1742782587992,0.65936709,85735.0,85734.0,0.0683]
[1742782588387,0.84556613,85735.0,85734.0,0.0683]
[1742782588893,0.84556613,85735.0,85734.0,0.0369]
[1742782589089,0.1166388,85733.0,85732.0,8e-05]
[1742782589289,0.1174788,85733.0,85732.0,8e-05]
[1742782589484,0.1166443,85729.0,85728.0,0.0637]
[1742782589786,0.1166443,85729.0,85728.0,0.06446]
[1742782590097,0.1174043,85729.0,85728.0,0.06446]
[1742782590685,0.1495043,85729.0,85728.0,0.06746]
[1742782591082,0.1475043,85729.0,85728.0,0.06746]
[1742782592088,0.1475043,85729.0,85728.0,0.07146]
[1742782592795,0.1475043,85729.0,85728.0,0.06846]
[1742782592995,0.1475043,85729.0,85728.0,0.07146]
[1742782593385,0.5083043,85729.0,85728.0,0.07146]
[1742782593583,0.5083043,85729.0,85728.0,0.07078]
[1742782594201,0.5083043,85729.0,85728.0,0.10208]
[1742782594497,0.5083043,85729.0,85728.0,0.10268]
[1742782595097,0.5083043,85729.0,85728.0,0.10208]
[1742782596400,0.62495162,85729.0,85728.0,0.03768]
[1742782596588,0.77405162,85729.0,85728.0,0.00708]
[1742782597099,0.0583275,85722.0,85707.0,0.1164]
[1742782597289,0.1166633,85715.0,85714.0,0.0006]
[1742782597491,0.1166647,85714.0,85713.0,0.0322]
[1742782597687,0.1813247,85714.0,85713.0,0.03296]
[1742782597888,0.1813247,85714.0,85713.0,0.0649]
[1742782598597,0.1166674,85712.0,85711.0,0.00446668]
[1742782598801,0.12907261,85712.0,85711.0,0.00446668]
[1742782599286,0.24574034,85712.0,85711.0,0.00446668]
[1742782599897,0.25471078,85712.0,85711.0,0.00446668]
[1742782600097,0.25171078,85712.0,85711.0,0.00046668]
[1742782601092,0.25271078,85712.0,85711.0,0.00046668]
[1742782601597,0.25571078,85712.0,85711.0,0.00046668]
[1742782601795,0.61651078,85712.0,85711.0,0.00046668]
[1742782602991,0.1166769,85705.0,85704.0,8e-05]
[1742782603296,0.116681,85702.0,85697.0,8e-05]
[1742782603490,0.1166892,85697.0,85696.0,0.116688]
[1742782603689,0.1166892,85696.0,85695.0,0.00046677]
[1742782603895,0.1174492,85696.0,85695.0,0.00114677]
[1742782604093,0.1487492,85696.0,85695.0,0.00114677]
[1742782604300,0.1808492,85696.0,85695.0,0.03424677]
[1742782604495,0.1808492,85696.0,85695.0,0.03416677]
[1742782604700,0.1808492,85696.0,85695.0,0.03356677]
[1742782604998,0.1798492,85696.0,85695.0,0.03356677]
[1742782605296,0.1798492,85696.0,85695.0,0.03456677]
[1742782606191,0.1798492,85696.0,85695.0,0.09816677]
[1742782606390,0.1798492,85696.0,85695.0,0.09880677]
[1742782607203,0.1798492,85696.0,85695.0,0.09980677]
[1742782607387,0.1477492,85696.0,85695.0,0.09980677]
[1742782608502,0.1785492,85696.0,85695.0,0.09980677]
[1742782609293,0.1785492,85696.0,85695.0,0.10092677]
[1742782613693,0.1785492,85696.0,85695.0,0.09980677]
[1742782614609,0.1785492,85696.0,85695.0,0.10092677]
[1742782616003,0.29524144,85696.0,85695.0,0.10092677]
[1742782616202,0.29524144,85696.0,85695.0,0.06778677]
[1742782618696,0.29524144,85696.0,85695.0,0.06666677]
[1742782619298,0.29524144,85696.0,85695.0,0.06778677]
[1742782623698,0.43441779,85696.0,85695.0,0.06778677]
[1742782626305,0.29524144,85696.0,85695.0,0.06778677]
[1742782627616,0.32544144,85696.0,85695.0,0.03668677]
[1742782628708,0.32544144,85696.0,85695.0,0.00358677]
[1742782630107,0.32544144,85696.0,85695.0,0.03398677]
[1742782630605,0.32544144,85696.0,85695.0,0.00358677]
[1742782631516,0.32544144,85696.0,85695.0,0.06488677]
[1742782631703,0.32544144,85696.0,85695.0,0.06388677]
[1742782632012,0.29591224,85696.0,85695.0,0.06288677]
[1742782632209,0.03206,85696.0,85695.0,0.06288677]
[1742782632409,0.1487492,85696.0,85695.0,0.06348677]
[1742782632614,0.1487492,85696.0,85695.0,0.06288677]
[1742782633813,0.1819492,85696.0,85695.0,0.06288677]
[1742782637018,0.29864144,85696.0,85695.0,0.03248677]
[1742782637207,0.33184144,85696.0,85695.0,0.00158677]
[1742782637410,0.44820144,85696.0,85695.0,0.00158677]
[1742782638015,0.85630144,85696.0,85695.0,0.00158677]
[1742782638818,0.85630144,85696.0,85695.0,0.03238677]
[1742782639512,0.82310144,85696.0,85695.0,0.03238677]
[1742782643314,0.99771971,85696.0,85695.0,0.03238677]
[1742782645926,0.93216215,85696.0,85695.0,0.03238677]
[1742782649219,0.75097295,85696.0,85695.0,0.03238677]
[1742782649424,0.51792071,85696.0,85695.0,0.03238677]
[1742782649620,0.22650991,85696.0,85695.0,0.03298677]
[1742782651129,0.10982071,85696.0,85695.0,0.03298677]
[1742782651327,0.22650991,85696.0,85695.0,0.04448738]
[1742782651729,0.1174492,85696.0,85695.0,0.04448738]
[1742782652730,0.00076,85696.0,85695.0,0.04448738]
[1742782653030,0.00076,85696.0,85695.0,0.16117788]
[1742782653228,0.20966739,85701.0,85700.0,0.1166837]
[1742782653430,0.21042739,85701.0,85700.0,0.1172837]
[1742782654242,0.21042739,85701.0,85700.0,0.1824837]
[1742782654827,0.21142739,85701.0,85700.0,0.1824837]
[1742782655229,0.21242739,85701.0,85700.0,0.1824837]
[1742782655532,0.00276,85701.0,85700.0,0.1824837]
[1742782657133,0.00276,85701.0,85700.0,0.5432837]
[1742782657324,0.17478462,85704.0,85703.0,0.1166796]
[1742782657524,0.17562462,85704.0,85703.0,0.5436396]
[1742782658333,0.01248004,85704.0,85703.0,0.6936396]
[1742782658525,0.20966739,85709.0,85703.0,0.6936396]
[1742782658526,0.20966739,85709.0,85705.0,0.0583382]
[1742782658835,0.20966739,85709.0,85708.0,0.4774728]
[1742782659045,0.20966739,85709.0,85708.0,0.5981528]
[1742782659235,0.20966739,85709.0,85708.0,0.6623528]
[1742782659438,0.032,85718.0,85713.0,0.1166657]
[1742782659633,0.000175,85717.0,85714.0,0.18048]
[1742782659835,0.000175,85717.0,85714.0,0.18116]
[1742782660028,0.00077501,85717.0,85714.0,0.18116]
[1742782660225,0.00077501,85717.0,85714.0,0.19310419]
[1742782660426,0.03137501,85717.0,85714.0,0.19310419]
[1742782661038,0.03637501,85717.0,85714.0,0.19310419]
[1742782661537,0.00577501,85717.0,85714.0,0.19310419]
[1742782661735,0.00577501,85717.0,85715.0,0.032]
[1742782662041,0.00577501,85717.0,85716.0,0.5399619]
[1742782662336,0.00577501,85717.0,85716.0,0.6506419]
[1742782662337,0.005175,85717.0,85716.0,0.6506419]
[1742782662530,0.00048,85720.0,85718.0,0.1166592]
[1742782662731,0.07513537,85723.0,85722.0,0.1166538]
[1742782662927,0.07513537,85723.0,85722.0,0.38842869]
[1742782663330,8e-05,85724.0,85723.0,0.1166524]
[1742782663522,0.0305,85735.0,85733.0,0.1166382]
[1742782663729,0.00068,85735.0,85734.0,0.3908]
[1742782663925,0.00076,85735.0,85734.0,0.39148]
[1742782664239,0.03126,85735.0,85734.0,0.39148]
[1742782664643,0.03118,85735.0,85734.0,0.40338003]
[1742782664835,0.03318,85735.0,85734.0,0.40338003]
[1742782665437,0.1498161,85735.0,85734.0,0.39148]
[1742782665641,0.1818161,85735.0,85734.0,0.39148]
[1742782665837,0.1838161,85735.0,85734.0,0.39148]
[1742782666552,0.1818161,85735.0,85734.0,0.39148]
[1742782667543,0.06518,85735.0,85734.0,0.39148]
[1742782667939,0.06518,85735.0,85734.0,0.5403175]
[1742782668135,0.06522,85735.0,85734.0,0.5403175]
[1742782668329,0.1818561,85735.0,85734.0,0.42368]
[1742782668534,0.1818561,85735.0,85734.0,0.5403175]
[1742782668741,0.1818561,85735.0,85734.0,0.42368]
[1742782668943,0.1818561,85735.0,85734.0,0.5403175]
[1742782670140,0.06522,85735.0,85734.0,0.5403175]
[1742782670546,0.0645,85735.0,85734.0,0.5403175]
[1742782674755,0.1811361,85735.0,85734.0,0.42368]
[1742782675048,0.06526,85735.0,85734.0,0.5403175]
[1742782675454,0.03326,85735.0,85734.0,0.5403175]
[1742782675634,0.0325,85735.0,85734.0,0.6403175]
[1742782685356,0.0325,85735.0,85734.0,0.52368]
[1742782685859,0.03318,85735.0,85734.0,0.6403175]
[1742782686049,0.0325,85735.0,85734.0,0.6403175]
[1742782688554,0.0325,85735.0,85734.0,0.65523789]
[1742782688950,0.002,85735.0,85734.0,0.65523789]
[1742782689150,0.002,85735.0,85734.0,0.66523789]
[1742782689756,0.3608,85770.0,85742.0,0.1166266]
[1742782689949,8e-05,85744.0,85742.0,0.91926699]
[1742782690455,8e-05,85744.0,85742.0,0.9043466]
[1742782690649,0.0004,85752.0,85742.0,0.9373466]
[1742782690852,8e-05,85744.0,85742.0,0.9373466]
[1742782691155,0.008175,85743.0,85742.0,0.9373466]
[1742782692863,0.008175,85743.0,85742.0,0.9682466]
[1742782697962,0.039775,85743.0,85742.0,0.9682466]
[1742782699473,0.008175,85743.0,85742.0,0.9682466]
[1742782700173,0.039475,85743.0,85742.0,0.9682466]
[1742782703275,0.0328,85747.0,85746.0,0.1166211]
[1742782703480,0.0328,85747.0,85746.0,0.8781811]
[1742782703674,8e-05,85749.0,85748.0,0.1166184]
[1742782703874,0.03198,85767.0,85751.0,0.1166143]
[1742782704090,0.06318,85767.0,85751.0,0.6934143]
[1742782704393,0.1165948,85766.0,85751.0,0.6934143]
[1742782704582,0.000175,85760.0,85751.0,0.77145569]
[1742782705081,8e-05,85754.0,85751.0,0.77145569]
[1742782705281,0.0044,85752.0,85751.0,0.77145569]
[1742782705890,0.0104,85752.0,85751.0,0.77145569]
[1742782706087,0.0104,85752.0,85751.0,1.13225569]
[1742782707482,0.0759,85752.0,85751.0,1.13225569]
[1742782708387,0.0759,85752.0,85751.0,1.01560139]
[1742782708688,0.0759,85752.0,85751.0,1.1172743]
[1742782709695,0.0759,85752.0,85751.0,1.13219671]
[1742782710287,0.0759,85752.0,85751.0,1.1172743]
[1742782710487,0.0759,85752.0,85751.0,1.13219785]
[1742782710983,0.0759,85752.0,85751.0,1.13215004]
[1742782719202,0.0759,85752.0,85751.0,1.132144]
[1742782724703,0.0759,85752.0,85751.0,1.0160935]
[1742782724900,0.0759,85752.0,85751.0,1.1321335]
[1742782729004,0.0759,85752.0,85751.0,1.41173802]
[1742782731809,0.0759,85752.0,85751.0,1.1321335]
[1742782738510,0.192513,85752.0,85751.0,1.1321335]
[1742782740912,0.0759,85752.0,85751.0,1.1321335]
[1742782741713,0.192513,85752.0,85751.0,1.1321335]
[1742782742014,0.192513,85752.0,85751.0,1.13213612]
[1742782742407,0.192513,85752.0,85751.0,1.13213585]
[1742782747325,0.0759,85752.0,85751.0,1.13213585]
[1742782747623,0.192513,85752.0,85751.0,1.13213585]
[1742782749323,0.0759,85752.0,85751.0,1.13213585]
[1742782749821,0.0759,85752.0,85751.0,1.1172343]
[1742782750222,0.0759,85752.0,85751.0,1.55635587]
[1742782751833,0.0759,85752.0,85751.0,1.57125886]
[1742782752824,0.0759,85752.0,85751.0,1.92094602]
[1742782755437,0.0759,85752.0,85751.0,1.57125886]
[1742782756626,0.192513,85752.0,85751.0,1.57125886]
[1742782757539,0.0759,85752.0,85751.0,1.57125886]
[1742782758634,0.0759,85752.0,85751.0,1.13212431]
[1742782759344,0.192513,85752.0,85751.0,1.13212431]
[1742782760630,0.192513,85752.0,85751.0,1.13217472]
[1742782761235,0.192513,85752.0,85751.0,1.13216933]
[1742782761540,0.192513,85752.0,85751.0,1.48186279]
[1742782764535,0.192513,85752.0,85751.0,1.12106279]
[1742782764740,0.192513,85752.0,85751.0,1.48186279]
[1742782765335,0.553313,85752.0,85751.0,0.82530849]
[1742782765543,0.55391301,85752.0,85751.0,0.61530849]
[1742782766141,0.56534905,85752.0,85751.0,0.60037346]
[1742782766738,0.56534905,85752.0,85751.0,0.35037346]
[1742782766943,0.56534905,85752.0,85751.0,0.30047346]
[1742782767144,0.56534905,85752.0,85751.0,0.30107346]
[1742782768140,0.56534905,85752.0,85751.0,0.0006]
[1742782771939,0.1166239,85744.0,85743.0,0.063475]
[1742782772140,0.1173039,85744.0,85743.0,0.20516311]
[1742782772742,0.1173039,85744.0,85743.0,0.02590311]
[1742782773052,0.1845039,85744.0,85743.0,0.02590311]
[1742782774850,0.1845039,85744.0,85743.0,0.02589504]
[1742782775049,0.1855039,85744.0,85743.0,0.02589504]
[1742782776342,0.1855039,85744.0,85743.0,0.02587851]
[1742782776541,0.1855039,85744.0,85743.0,0.05897851]
[1742782777750,0.1855039,85744.0,85743.0,0.043955]
[1742782777946,0.1855039,85744.0,85743.0,0.010855]
[1742782778149,0.1855039,85744.0,85743.0,0.000855]
[1742782783855,0.00468,85744.0,85743.0,0.11602989]
[1742782784058,0.0004,85752.0,85749.0,0.0583085]
[1742782784254,0.0004,85752.0,85751.0,0.4774143]
[1742782784461,0.0004,85752.0,85751.0,1.05598919]
[1742782785251,0.0014,85752.0,85751.0,1.05598919]
[1742782785449,8e-05,85755.0,85754.0,0.1166103]
[1742782785650,0.000175,85760.0,85759.0,0.1166035]
[1742782785860,0.000175,85760.0,85759.0,0.60833839]
[1742782786250,0.000175,85760.0,85759.0,0.67113839]
[1742782789062,0.000175,85760.0,85759.0,0.68298232]
[1742782790863,0.000175,85760.0,85759.0,0.68301908]
[1742782798054,0.000175,85760.0,85759.0,0.66780743]
[1742782798366,0.000175,85760.0,85759.0,0.68301579]
[1742782798559,0.000175,85760.0,85759.0,1.04381579]
[1742782798759,0.000175,85760.0,85759.0,1.04381548]
[1742782799257,0.000175,85760.0,85759.0,0.92789548]
[1742782799461,0.064575,85760.0,85759.0,0.92717198]
[1742782799662,0.064575,85760.0,85759.0,1.04377548]
[1742782800165,0.064575,85760.0,85759.0,1.04370834]
[1742782802966,0.064575,85760.0,85759.0,0.81122484]
[1742782803173,0.1811771,85760.0,85759.0,0.89710484]
[1742782803475,0.1811771,85760.0,85759.0,1.01370834]
[1742782803866,0.1811771,85760.0,85759.0,1.04630834]
[1742782804471,0.1811771,85760.0,85759.0,0.92970484]
[1742782805074,0.1811771,85760.0,85759.0,1.04630834]
[1742782806487,0.1811771,85760.0,85759.0,0.92970484]
[1742782806674,0.1811771,85760.0,85759.0,0.86430484]
[1742782808077,0.1811771,85760.0,85759.0,0.86426484]
[1742782808782,0.1818571,85760.0,85759.0,0.86426484]
[1742782809094,0.1811771,85760.0,85759.0,0.72426484]
[1742782809290,0.1818571,85760.0,85759.0,0.72426484]
[1742782809593,0.1818571,85760.0,85759.0,0.72428651]
[1742782811587,0.1818571,85760.0,85759.0,0.72420763]
[1742782811783,0.1166103,85754.0,85752.0,0.11584]
[1742782811989,0.1166103,85754.0,85753.0,0.21052439]
[1742782812390,0.11757031,85754.0,85753.0,0.21052439]
[1742782812587,0.1166157,85750.0,85747.0,0.11584]
[1742782812786,0.1166157,85750.0,85749.0,0.28053919]
[1742782812787,0.11769571,85750.0,85749.0,0.28053919]
[1742782813488,0.11769571,85750.0,85749.0,0.18073919]
[1742782814380,0.23431446,85750.0,85744.0,0.0302]
[1742782814582,0.4774225,85745.0,85744.0,0.00064]
[1742782814792,0.4787025,85745.0,85744.0,0.00064]
[1742782815492,0.4787025,85745.0,85744.0,0.03314]
[1742782815686,0.5092025,85745.0,85744.0,0.0325]
[1742782816291,0.52094613,85745.0,85744.0,0.0325]
[1742782816694,0.55624613,85745.0,85744.0,0.0325]
[1742782821398,0.1166239,85744.0,85743.0,0.000175]
[1742782821602,0.116632,85738.0,85737.0,0.0303]
[1742782821903,0.117952,85738.0,85737.0,0.0309]
[1742782822401,0.117952,85738.0,85737.0,0.1475334]
[1742782822601,0.119952,85738.0,85737.0,0.0309]
[1742782824005,0.119952,85738.0,85737.0,0.1475334]
[1742782824608,0.117952,85738.0,85737.0,0.1475334]
[1742782827411,0.117952,85738.0,85737.0,0.0309]
[1742782828712,0.117952,85738.0,85737.0,0.0641]
[1742782832313,0.117952,85738.0,85737.0,0.1807334]
[1742782833117,0.117952,85738.0,85737.0,0.0641]
[1742782833510,0.117952,85738.0,85737.0,0.1807334]
[1742782834107,0.117952,85738.0,85737.0,0.0641]
[1742782835211,0.117952,85738.0,85737.0,0.1807334]
[1742782835915,0.117952,85738.0,85737.0,0.0641]
[1742782839812,0.148052,85738.0,85737.0,0.0641]
[1742782840012,0.179152,85738.0,85737.0,0.0641]
[1742782840615,0.148052,85738.0,85737.0,0.0641]
[1742782841309,0.148052,85738.0,85737.0,0.07892731]
[1742782841823,0.148052,85738.0,85737.0,0.07892748]
[1742782845819,0.148052,85738.0,85737.0,0.07891583]
[1742782846421,0.148052,85738.0,85737.0,0.0641]
[1742782848522,0.179552,85738.0,85737.0,0.0641]
[1742782848917,0.179552,85738.0,85737.0,0.0635]
[1742782850736,0.1166415,85731.0,85730.0,8e-05]
[1742782851030,0.4787215,85731.0,85730.0,8e-05]
[1742782851417,0.66755985,85731.0,85730.0,8e-05]
[1742782852225,0.1166429,85730.0,85728.0,0.0322]
[1742782852428,0.1179229,85730.0,85728.0,0.0322]
[1742782852630,0.1813229,85730.0,85728.0,0.0322]
[1742782853024,0.30990302,85730.0,85728.0,0.0322]
[1742782853923,0.30990302,85730.0,85729.0,0.032375]
[1742782856532,0.67070302,85730.0,85729.0,0.032375]
[1742782867435,0.67070302,85730.0,85729.0,0.1490193]
[1742782867436,0.36208,85730.0,85729.0,0.1490193]
[1742782867643,0.36208,85730.0,85729.0,0.2596193]
[1742782867843,0.36208,85730.0,85729.0,0.3753793]
[1742782868048,0.36208,85730.0,85729.0,0.4057793]
[1742782868049,0.4787229,85730.0,85729.0,0.4057793]
[1742782869042,0.36208,85730.0,85729.0,0.4057793]
[1742782870352,0.50179644,85730.0,85729.0,0.4057793]
[1742782870546,0.14099644,85730.0,85729.0,0.4057793]
[1742782871543,0.25763934,85730.0,85729.0,0.4057793]
[1742782871946,0.25763934,85730.0,85729.0,0.7665793]
[1742782872142,0.14099644,85730.0,85729.0,0.4057793]
[1742782873056,0.25763934,85730.0,85729.0,0.4057793]
[1742782874751,0.1179229,85730.0,85729.0,0.4057793]
[1742782876150,0.00128,85730.0,85729.0,0.4057793]
[1742782877958,0.1179229,85730.0,85729.0,0.4057793]
[1742782880657,0.1179229,85730.0,85729.0,0.2957793]
[1742782880863,0.1179229,85730.0,85729.0,0.063375]
[1742782881057,0.1179229,85730.0,85729.0,0.062775]
[1742782881365,0.19084711,85730.0,85729.0,0.062775]
[1742782881561,0.19084711,85730.0,85729.0,0.063375]
[1742782882568,0.1480229,85730.0,85729.0,0.1800193]
[1742782884860,0.1480229,85730.0,85729.0,0.063375]
[1742782885054,0.1480229,85730.0,85729.0,0.1800193]
[1742782885453,0.1480229,85730.0,85729.0,0.063375]
[1742782886259,0.1480229,85730.0,85729.0,0.1800193]
[1742782887472,0.1480229,85730.0,85729.0,0.063375]
[1742782887769,0.1480229,85730.0,85669.0,0.06274151]
[1742782887770,0.1166524,85723.0,85722.0,8e-05]
[1742782887960,0.4788924,85723.0,85722.0,0.00068]
[1742782888161,0.4788924,85723.0,85722.0,8e-05]
[1742782888467,0.1166565,85720.0,85717.0,0.0312]
[1742782888767,0.116666,85713.0,85712.0,0.0312]
[1742782888955,0.477466,85713.0,85712.0,0.0318]
[1742782889161,0.478906,85713.0,85712.0,0.0318]
[1742782889362,0.478906,85713.0,85712.0,0.0006]
[1742782889556,0.541006,85713.0,85712.0,0.0006]
[1742782889771,0.65467509,85713.0,85712.0,0.0006]
[1742782891068,0.65467509,85713.0,85712.0,0.0046]
[1742782892071,0.66616045,85713.0,85712.0,0.0046]
[1742782892570,0.66616045,85713.0,85712.0,0.0006]
[1742782893070,0.1166674,85712.0,85711.0,0.00064168]
[1742782893273,0.1181074,85712.0,85711.0,0.00064168]
[1742782893570,0.1799074,85712.0,85711.0,0.03194168]
[1742782893773,0.29657649,85712.0,85711.0,0.03194168]
[1742782893961,0.29657649,85712.0,85711.0,0.00064168]
[1742782898872,0.29657649,85712.0,85711.0,0.00132168]
[1742782899572,0.29657649,85712.0,85711.0,0.00064168]
[1742782900175,0.1799074,85712.0,85711.0,0.03194168]
[1742782905067,0.31934637,85712.0,85711.0,0.03194168]
[1742782908276,0.1799074,85712.0,85711.0,0.03194168]
[1742782908574,0.5407074,85712.0,85711.0,0.03194168]
[1742782914886,0.71519856,85712.0,85711.0,0.03194168]
[1742782918482,0.5407074,85712.0,85711.0,0.03194168]
[1742782920785,0.38952106,85712.0,85711.0,0.03194168]
[1742782924489,0.29831279,85712.0,85711.0,0.03194168]
[1742782925177,0.18661279,85712.0,85711.0,0.03194168]
[1742782925378,0.11984539,85712.0,85711.0,0.59941048]
[1742782925689,0.23507279,85712.0,85711.0,0.60001048]
[1742782925886,0.23655279,85712.0,85711.0,0.63011048]
[1742782928088,0.1181474,85712.0,85711.0,0.63011048]
[1742782929096,0.00148,85712.0,85711.0,0.63011048]
[1742782929688,0.17496928,85713.0,85712.0,0.1166674]
[1742782929884,0.17648928,85713.0,85712.0,0.4581874]
[1742782930091,0.17648928,85713.0,85712.0,0.5217874]
[1742782930287,0.000175,85721.0,85718.0,0.1166592]
[1742782930600,0.21104314,85719.0,85718.0,0.8537392]
[1742782930783,0.20996314,85719.0,85718.0,0.8537392]
[1742782930983,0.21100315,85719.0,85718.0,0.8537392]
[1742782931791,0.21200315,85719.0,85718.0,0.8537392]
[1742782931995,0.14190746,85719.0,85718.0,0.8537392]
[1742782932589,0.14290746,85719.0,85718.0,0.8537392]
[1742782934790,0.25956536,85719.0,85718.0,0.62148]
[1742782934986,0.14290746,85719.0,85718.0,0.8537392]
[1742782935579,0.14290746,85719.0,85718.0,0.9185392]
[1742782935882,0.00304001,85719.0,85718.0,0.9185392]
[1742782936084,0.002,85719.0,85718.0,0.9185392]
[1742782940685,0.1186579,85719.0,85718.0,0.9185392]
[1742782940882,0.1186579,85719.0,85718.0,0.19548]
[1742782941091,0.1850579,85719.0,85718.0,0.03258]
[1742782941288,0.1850579,85719.0,85718.0,0.0319]
[1742782942781,0.32492535,85719.0,85718.0,0.0319]
[1742782944493,0.33653852,85719.0,85718.0,0.0319]
[1742782945988,0.69733852,85719.0,85718.0,0.0319]
[1742782946199,0.55747107,85719.0,85718.0,0.0319]
[1742782950194,0.1166674,85712.0,85711.0,0.00064168]
[1742782950590,0.1176674,85712.0,85711.0,0.00064168]
[1742782950789,0.1176674,85712.0,85711.0,0.00124168]
[1742782951105,0.1838674,85712.0,85711.0,0.00124168]
[1742782951404,0.1838674,85712.0,85711.0,0.03444168]
[1742782951594,0.1828674,85712.0,85711.0,0.03384168]